bitfinex/quotes_BTCUSD_20220405
["timestamp","ask_amount","ask_price","bid_price","bid_amount"]
[1649136261583,0.31044281,46770.0,46766.0,0.27235616]
[1649136262614,0.30989031,46770.0,46766.0,0.27235616]
[1649136262802,0.31044277,46770.0,46766.0,0.27235616]
[1649136263752,0.30989031,46770.0,46766.0,0.27235616]
[1649136264054,0.31044277,46770.0,46766.0,0.27235616]
[1649136265004,0.30989031,46770.0,46766.0,0.27235616]
[1649136265303,0.31044277,46770.0,46766.0,0.27235616]
[1649136266188,0.30989031,46770.0,46766.0,0.27235616]
[1649136267240,0.30989031,46770.0,46766.0,0.32235616]
[1649136268393,0.30989031,46770.0,46766.0,0.27235616]
[1649136268797,0.310488,46770.0,46766.0,0.27235616]
[1649136269650,0.310488,46770.0,46764.0,0.25981312]
[1649136269800,0.30989031,46770.0,46764.0,0.25981312]
[1649136270102,0.310488,46770.0,46765.0,0.320858]
[1649136270201,0.310488,46770.0,46764.0,0.25981312]
[1649136270300,0.310488,46770.0,46765.0,0.320858]
[1649136270401,0.310488,46770.0,46764.0,0.25981312]
[1649136270502,0.310488,46770.0,46765.0,0.320858]
[1649136270601,0.310488,46770.0,46764.0,0.25981312]
[1649136270705,0.310488,46770.0,46766.0,0.28956062]
[1649136271004,0.30989031,46770.0,46766.0,0.28956062]
[1649136271305,0.310488,46770.0,46766.0,0.28956062]
[1649136272257,0.30989031,46770.0,46766.0,0.28956062]
[1649136272457,0.31047142,46770.0,46766.0,0.28956062]
[1649136272558,0.31047142,46770.0,46764.0,0.25981312]
[1649136273061,0.31047142,46770.0,46765.0,0.320858]
[1649136273161,0.31047142,46770.0,46764.0,0.20981312]
[1649136273398,0.30989031,46770.0,46764.0,0.20981312]
[1649136273594,0.30989031,46770.0,46765.0,0.27212042]
[1649136273691,0.00058112,46769.0,46766.0,0.320858]
[1649136274043,0.00058112,46769.0,46765.0,0.27212042]
[1649136274394,0.00058112,46769.0,46766.0,0.320858]
[1649136274644,0.30989031,46770.0,46765.0,0.27212042]
[1649136274746,0.30989031,46770.0,46764.0,0.20981312]
[1649136274844,0.31047143,46770.0,46765.0,0.32073853]
[1649136274945,0.31047143,46770.0,46764.0,0.20981312]
[1649136275043,0.31047143,46770.0,46765.0,0.320933]
[1649136275144,0.31047143,46770.0,46764.0,0.20981312]
[1649136275693,0.31047143,46770.0,46765.0,0.320933]
[1649136275800,0.30989031,46770.0,46765.0,0.320933]
[1649136276096,0.00058224,46769.0,46764.0,0.20981312]
[1649136276196,0.00058224,46769.0,46766.0,0.2332778]
[1649136277049,0.053469,46771.0,46766.0,0.2332778]
[1649136277297,0.00058223,46770.0,46766.0,0.2332778]
[1649136277397,0.00048948,46770.0,46766.0,0.2332778]
[1649136278148,0.00048948,46770.0,46765.0,0.320933]
[1649136278249,0.053469,46771.0,46764.0,0.20981312]
[1649136278548,0.053469,46771.0,46765.0,0.320933]
[1649136278653,0.053469,46771.0,46764.0,0.20981312]
[1649136278851,0.053469,46771.0,46765.0,0.320933]
[1649136278954,0.053469,46771.0,46764.0,0.20981312]
[1649136279150,0.053469,46771.0,46765.0,0.320933]
[1649136279250,0.053469,46771.0,46764.0,0.20981312]
[1649136279352,0.053469,46771.0,46765.0,0.57439873]
[1649136279451,0.053469,46771.0,46765.0,0.25346573]
[1649136279550,0.053469,46771.0,46764.0,0.20981312]
[1649136280107,0.31577085,46767.0,46765.0,0.320933]
[1649136280706,0.31577085,46767.0,46764.0,0.20981312]
[1649136281049,0.31577085,46767.0,46765.0,0.320933]
[1649136281151,0.31577085,46767.0,46764.0,0.20981312]
[1649136281249,0.31577085,46767.0,46765.0,0.320933]
[1649136281361,0.31577085,46767.0,46764.0,0.20981312]
[1649136281452,0.31577085,46767.0,46765.0,0.320933]
[1649136281549,0.31577085,46767.0,46764.0,0.20981312]
[1649136281649,0.31577085,46767.0,46765.0,0.320933]
[1649136281750,0.31577085,46767.0,46764.0,0.20981312]
[1649136281851,0.31577085,46767.0,46765.0,0.320933]
[1649136281950,0.31577085,46767.0,46764.0,0.20981312]
[1649136282149,0.31577085,46767.0,46765.0,0.320933]
[1649136282249,0.31577085,46767.0,46764.0,0.20981312]
[1649136282450,0.36577085,46767.0,46765.0,0.320933]
[1649136282552,0.36577085,46767.0,46764.0,0.20981312]
[1649136282650,0.36577085,46767.0,46765.0,0.320933]
[1649136283202,0.31577085,46767.0,46765.0,0.320933]
[1649136283604,0.31577085,46767.0,46766.0,0.163857]
[1649136286150,0.36577085,46767.0,46766.0,0.163857]
[1649136289144,0.31577085,46767.0,46766.0,0.163857]
[1649136289999,0.00058217,46769.0,46766.0,0.163857]
[1649136290099,0.00058217,46769.0,46764.0,0.20981312]
[1649136290196,0.38808147,46770.0,46765.0,0.32094]
[1649136290397,0.24736618,46770.0,46765.0,0.32094]
[1649136290498,0.24794834,46770.0,46765.0,0.32094]
[1649136290647,0.24794834,46770.0,46764.0,0.20981312]
[1649136290748,0.24794834,46770.0,46765.0,0.163845]
[1649136290847,0.24794834,46770.0,46764.0,0.20981312]
[1649136291410,0.24736618,46770.0,46764.0,0.20981312]
[1649136291497,0.38808147,46770.0,46764.0,0.20981312]
[1649136291600,0.00058217,46769.0,46764.0,0.20981312]
[1649136291700,0.00058217,46769.0,46765.0,0.32094]
[1649136292566,0.33808147,46770.0,46765.0,0.32094]
[1649136292865,0.00058217,46769.0,46765.0,0.32094]
[1649136293770,0.33808147,46770.0,46765.0,0.32094]
[1649136294069,0.00058217,46769.0,46765.0,0.32094]
[1649136295022,0.38808147,46770.0,46765.0,0.32094]
[1649136295221,0.00058217,46769.0,46765.0,0.32094]
[1649136296254,0.19736618,46771.0,46765.0,0.32094]
[1649136296358,0.06069,46773.0,46765.0,0.32094]
[1649136296454,0.31570056,46774.0,46765.0,0.32094]
[1649136296455,0.00058217,46769.0,46765.0,0.32094]
[1649136296757,0.00058217,46769.0,46768.0,0.27073328]
[1649136297359,0.06212448,46776.0,46768.0,0.27073328]
[1649136297458,0.06212448,46776.0,46765.0,0.32094]
[1649136297560,0.05143448,46776.0,46765.0,0.32094]
[1649136297662,0.00058215,46771.0,46765.0,0.32094]
[1649136298408,0.00058215,46771.0,46765.0,0.37440005]
[1649136298609,0.05143448,46776.0,46765.0,0.37440005]
[1649136298711,0.05,46774.0,46765.0,0.05346005]
[1649136298809,0.00058216,46770.0,46767.0,0.32094]
[1649136298913,0.00058216,46770.0,46769.0,0.11815519]
[1649136299008,0.00058216,46770.0,46769.0,0.28197019]
[1649136299859,0.01069,46775.0,46769.0,0.28197019]
[1649136299959,0.05143448,46776.0,46765.0,0.05346005]
[1649136300059,0.19736618,46774.0,46765.0,0.05346005]
[1649136300160,0.19736618,46774.0,46766.0,0.32094]
[1649136300310,0.24736618,46774.0,46765.0,0.05346005]
[1649136300411,0.24736618,46774.0,46766.0,0.32094]
[1649136300811,0.24736618,46774.0,46765.0,0.05346005]
[1649136301112,0.05,46774.0,46766.0,0.32094]
[1649136301210,0.10143448,46776.0,46772.0,0.30002614]
[1649136301414,0.19736618,46774.0,46766.0,0.32094]
[1649136301511,0.19736618,46774.0,46772.0,0.28971633]
[1649136301612,0.24736618,46774.0,46772.0,0.28971633]
[1649136301813,0.05,46774.0,46772.0,0.28971633]
[1649136302014,0.01069,46775.0,46772.0,0.28971633]
[1649136302212,0.02643448,46776.0,46772.0,0.28971633]
[1649136302412,0.02643448,46776.0,46773.0,0.29914623]
[1649136302413,0.0270166,46776.0,46773.0,0.29914623]
[1649136302814,0.0270166,46776.0,46772.0,0.28971633]
[1649136303404,0.19736618,46774.0,46772.0,0.28971633]
[1649136303505,0.24736618,46774.0,46766.0,0.32094]
[1649136303806,0.24736618,46774.0,46771.0,0.291249]
[1649136303906,0.24736618,46774.0,46766.0,0.32094]
[1649136304010,0.05,46774.0,46766.0,0.32094]
[1649136304108,0.24736618,46774.0,46766.0,0.32094]
[1649136304558,0.24736618,46774.0,46770.0,0.30668866]
[1649136304857,0.00058214,46772.0,46770.0,0.30668866]
[1649136304957,0.00058214,46772.0,46771.0,0.32094]
[1649136305058,0.00058214,46772.0,46770.0,0.30668866]
[1649136305159,0.00058214,46772.0,46771.0,0.32094]
[1649136305256,0.00058214,46772.0,46770.0,0.57661447]
[1649136305357,0.00058214,46772.0,46771.0,0.32094]
[1649136305457,0.00058214,46772.0,46770.0,0.57661447]
[1649136305558,0.00058214,46772.0,46771.0,0.32094]
[1649136305661,0.00058214,46772.0,46770.0,0.57661447]
[1649136305759,0.00058214,46772.0,46771.0,0.32094]
[1649136305858,0.31069,46775.0,46770.0,0.57661447]
[1649136306068,0.00058213,46774.0,46770.0,0.57661447]
[1649136306759,0.00058213,46774.0,46770.0,0.57652927]
[1649136307062,0.31069,46775.0,46770.0,0.57652927]
[1649136307264,0.00058213,46774.0,46770.0,0.57652927]
[1649136308113,0.00058213,46774.0,46770.0,0.30660346]
[1649136308214,0.31069,46775.0,46770.0,0.30660346]
[1649136308315,0.19736618,46774.0,46765.0,0.05346005]
[1649136308514,0.19794831,46774.0,46765.0,0.05346005]
[1649136309120,0.053468,46772.0,46765.0,0.32094]
[1649136309216,0.053468,46772.0,46766.0,0.30251206]
[1649136309415,0.053468,46772.0,46765.0,0.32094]
[1649136309617,0.053468,46772.0,46764.0,0.25981312]
[1649136309716,0.053468,46772.0,46765.0,0.32094]
[1649136309717,0.00058215,46771.0,46765.0,0.32094]
[1649136309816,0.00058215,46771.0,46764.0,0.25981312]
[1649136309918,0.00058215,46771.0,46765.0,0.32094]
[1649136310419,0.00058215,46771.0,46767.0,0.24213384]
[1649136310622,0.053468,46772.0,46767.0,0.24213384]
[1649136310908,0.00058215,46771.0,46767.0,0.24213384]
[1649136311207,0.00058215,46771.0,46765.0,0.32094]
[1649136311306,0.00058215,46771.0,46764.0,0.25981312]
[1649136311711,0.00058215,46771.0,46765.0,0.32094]
[1649136311812,0.053468,46772.0,46764.0,0.25981312]
[1649136312055,0.048908,46772.0,46764.0,0.25981312]
[1649136312258,0.00058216,46770.0,46764.0,0.25981312]
[1649136312356,0.00058216,46770.0,46765.0,0.32094]
[1649136312456,0.00058216,46770.0,46769.0,0.11815519]
[1649136313058,0.048908,46772.0,46769.0,0.11815519]
[1649136313158,0.048908,46772.0,46766.0,0.3067856]
[1649136313258,0.04949015,46772.0,46766.0,0.3067856]
[1649136314109,0.00058215,46772.0,46767.0,0.32094]
[1649136314213,0.24736618,46774.0,46771.0,0.31201212]
[1649136318080,0.24736618,46774.0,46771.0,0.30639812]
[1649136319507,0.01127212,46775.0,46771.0,0.30639812]
[1649136319607,0.01127212,46775.0,46772.0,0.32094]
[1649136319608,0.00058212,46775.0,46772.0,0.32094]
[1649136319705,0.00058212,46775.0,46774.0,0.11815519]
[1649136319807,0.00058212,46775.0,46774.0,0.31284001]
[1649136320209,0.01069,46779.0,46774.0,0.31284001]
[1649136320304,0.38808147,46780.0,46774.0,0.03092082]
[1649136320305,0.24736618,46780.0,46774.0,0.03092082]
[1649136320503,0.00058322,46777.0,46774.0,0.03092082]
[1649136320603,0.00058322,46777.0,46776.0,0.11815519]
[1649136320805,0.00058322,46777.0,46776.0,0.41252494]
[1649136321405,0.01069,46781.0,46776.0,0.41252494]
[1649136321503,0.01069,46781.0,46776.0,0.29436975]
[1649136321705,0.00058321,46779.0,46776.0,0.29436975]
[1649136322161,0.00058321,46779.0,46771.0,0.35639812]
[1649136322462,0.19736618,46777.0,46771.0,0.35639812]
[1649136322563,0.19736618,46777.0,46772.0,0.32094]
[1649136322761,0.24736618,46777.0,46772.0,0.32094]
[1649136322962,0.00058323,46776.0,46772.0,0.32094]
[1649136323262,0.00058323,46776.0,46773.0,0.27750912]
[1649136323362,0.00058323,46776.0,46774.0,0.163763]
[1649136323465,0.00058323,46776.0,46773.0,0.27750912]
[1649136323564,0.00058323,46776.0,46774.0,0.32094]
[1649136323667,0.00058323,46776.0,46773.0,0.27750912]
[1649136323764,0.00058323,46776.0,46774.0,0.32094]
[1649136323863,0.01069,46779.0,46773.0,0.27750912]
[1649136323966,0.103461,46780.0,46773.0,0.27750912]
[1649136324066,0.00058315,46777.0,46773.0,0.27750912]
[1649136324766,0.19794933,46777.0,46773.0,0.27750912]
[1649136324866,0.24794933,46777.0,46773.0,0.27750912]
[1649136324966,0.24794933,46777.0,46774.0,0.32094]
[1649136325067,0.24736618,46777.0,46773.0,0.27750912]
[1649136325267,0.24794932,46777.0,46774.0,0.32094]
[1649136325906,0.24794932,46777.0,46772.0,0.32094]
[1649136326208,0.24736618,46777.0,46772.0,0.32094]
[1649136326408,0.19736618,46777.0,46772.0,0.32094]
[1649136326509,0.19794933,46777.0,46772.0,0.32094]
[1649136326660,0.24794933,46777.0,46772.0,0.32094]
[1649136327062,0.24794933,46777.0,46773.0,0.163766]
[1649136327159,0.24794933,46777.0,46771.0,0.64732718]
[1649136327261,0.24794933,46777.0,46772.0,0.32094]
[1649136327361,0.24794933,46777.0,46773.0,0.163766]
[1649136327461,0.24736618,46777.0,46774.0,0.32094]
[1649136327561,0.24736618,46777.0,46771.0,0.64732718]
[1649136327663,0.24736618,46777.0,46772.0,0.32094]
[1649136327813,0.24794934,46777.0,46772.0,0.32094]
[1649136328314,0.05058316,46777.0,46772.0,0.32094]
[1649136328415,0.00058316,46777.0,46772.0,0.32094]
[1649136328666,0.01069,46779.0,46771.0,0.59732718]
[1649136328914,0.00058316,46777.0,46771.0,0.59732718]
[1649136329014,0.00058316,46777.0,46772.0,0.32094]
[1649136329116,0.00058316,46777.0,46771.0,0.59732718]
[1649136329215,0.00058316,46777.0,46772.0,0.32094]
[1649136329315,0.19794934,46777.0,46771.0,0.59732718]
[1649136329417,0.19794934,46777.0,46772.0,0.32094]
[1649136329522,0.24794934,46777.0,46772.0,0.163764]
[1649136329855,0.05,46777.0,46772.0,0.163764]
[1649136330060,0.00058316,46777.0,46772.0,0.163764]
[1649136331062,0.19736618,46777.0,46772.0,0.163764]
[1649136331160,0.24736618,46777.0,46772.0,0.163764]
[1649136331261,0.24794934,46777.0,46772.0,0.163764]
[1649136332259,0.24736618,46777.0,46772.0,0.163764]
[1649136332459,0.24794934,46777.0,46772.0,0.163764]
[1649136333311,0.05058316,46777.0,46772.0,0.163764]
[1649136333414,0.05,46777.0,46772.0,0.163764]
[1649136333514,0.01069,46779.0,46772.0,0.163764]
[1649136333618,0.053461,46780.0,46772.0,0.32094]
[1649136333716,0.00058316,46777.0,46772.0,0.32094]
[1649136334618,0.053461,46780.0,46772.0,0.32094]
[1649136334723,0.053461,46780.0,46771.0,0.59732718]
[1649136334918,0.00058316,46777.0,46771.0,0.59732718]
[1649136335021,0.19794934,46777.0,46772.0,0.32094]
[1649136335319,0.24794934,46777.0,46772.0,0.32094]
[1649136335821,0.24736618,46777.0,46772.0,0.32094]
[1649136336124,0.24794934,46777.0,46772.0,0.32094]
[1649136337075,0.24736618,46777.0,46772.0,0.32094]
[1649136337285,0.24794934,46777.0,46772.0,0.32094]
[1649136337382,0.05058316,46777.0,46772.0,0.32094]
[1649136337585,0.00058316,46777.0,46772.0,0.32094]
[1649136338235,0.01069,46779.0,46772.0,0.32094]
[1649136338387,0.01069,46779.0,46771.0,0.59732718]
[1649136338485,0.00058316,46777.0,46772.0,0.32094]
[1649136339339,0.00058316,46777.0,46771.0,0.59732718]
[1649136339440,0.19736618,46777.0,46772.0,0.32094]
[1649136339538,0.19736618,46777.0,46771.0,0.59732718]
[1649136339639,0.19736618,46777.0,46776.0,0.11815519]
[1649136339738,0.24736618,46777.0,46776.0,0.11815519]
[1649136339842,0.24794934,46777.0,46776.0,0.11815519]
[1649136340040,0.24794934,46777.0,46771.0,0.59732718]
[1649136340190,0.24794934,46777.0,46772.0,0.32094]
[1649136340289,0.24794934,46777.0,46771.0,0.59732718]
[1649136340389,0.24794934,46777.0,46772.0,0.32094]
[1649136340489,0.05058316,46777.0,46772.0,0.32094]
[1649136340591,0.05058316,46777.0,46774.0,0.163707]
[1649136340693,0.01069,46779.0,46772.0,0.320919]
[1649136340793,0.01069,46779.0,46771.0,0.59732718]
[1649136340911,0.02701566,46777.0,46772.0,0.320919]
[1649136341807,0.0264325,46777.0,46772.0,0.320919]
[1649136342107,0.02701566,46777.0,46772.0,0.320919]
[1649136343010,0.0264325,46777.0,46772.0,0.320919]
[1649136343311,0.02701566,46777.0,46772.0,0.320919]
[1649136343814,0.22438184,46777.0,46772.0,0.320919]
[1649136344012,0.27438184,46777.0,46772.0,0.320919]
[1649136344212,0.27379868,46777.0,46772.0,0.320919]
[1649136344411,0.0764325,46777.0,46772.0,0.320919]
[1649136344511,0.07701566,46777.0,46772.0,0.320919]
[1649136344674,0.22438184,46777.0,46772.0,0.320919]
[1649136344875,0.27438184,46777.0,46772.0,0.320919]
[1649136344972,0.07701566,46777.0,46776.0,0.11815519]
[1649136345075,0.27438184,46777.0,46776.0,0.11815519]
[1649136345424,0.24736618,46777.0,46771.0,0.59732718]
[1649136345523,0.05,46777.0,46772.0,0.320919]
[1649136345621,0.19736618,46777.0,46772.0,0.320919]
[1649136345722,0.24736618,46777.0,46772.0,0.320919]
[1649136346873,0.05054906,46777.0,46772.0,0.320919]
[1649136346973,0.00054906,46777.0,46772.0,0.320919]
[1649136347123,0.19791524,46777.0,46772.0,0.320919]
[1649136347222,0.24791524,46777.0,46772.0,0.320919]
[1649136347872,0.24736618,46777.0,46772.0,0.320919]
[1649136348071,0.24791524,46777.0,46772.0,0.320919]
[1649136348481,0.24791524,46777.0,46771.0,0.59732718]
[1649136348580,0.24791524,46777.0,46772.0,0.320919]
[1649136348832,0.05054906,46777.0,46772.0,0.320919]
[1649136349032,0.02643165,46778.0,46772.0,0.320919]
[1649136349182,0.19736618,46777.0,46772.0,0.163722]
[1649136349282,0.19791524,46777.0,46772.0,0.163722]
[1649136349481,0.24791524,46777.0,46772.0,0.163722]
[1649136349582,0.05054906,46777.0,46772.0,0.163722]
[1649136349688,0.05054906,46777.0,46774.0,0.053456]
[1649136349689,0.00054906,46777.0,46774.0,0.053456]
[1649136350282,0.02643165,46778.0,46774.0,0.053456]
[1649136350484,0.19736618,46777.0,46774.0,0.053456]
[1649136351334,0.19736618,46777.0,46776.0,0.11815519]
[1649136351536,0.02643165,46778.0,46776.0,0.11815519]
[1649136351636,0.02643165,46778.0,46774.0,0.053456]
[1649136351736,0.02698407,46778.0,46774.0,0.053456]
[1649136352035,0.02698407,46778.0,46772.0,0.001]
[1649136352621,0.02643165,46778.0,46772.0,0.001]
[1649136352916,0.00055242,46777.0,46772.0,0.001]
[1649136353016,0.00055242,46777.0,46773.0,0.320919]
[1649136353165,0.1979186,46777.0,46774.0,0.1637]
[1649136353266,0.1979186,46777.0,46772.0,0.001]
[1649136353414,0.1979186,46777.0,46773.0,0.320919]
[1649136353616,0.1979186,46777.0,46772.0,0.001]
[1649136353715,0.1979186,46777.0,46773.0,0.163704]
[1649136353815,0.19736618,46777.0,46773.0,0.163704]
[1649136354115,0.00055227,46777.0,46773.0,0.163704]
[1649136354915,0.00055227,46777.0,46774.0,0.320919]
[1649136355016,0.02643165,46778.0,46775.0,0.320912]
[1649136355121,0.02643165,46778.0,46772.0,0.001]
[1649136355221,0.19736618,46777.0,46772.0,0.001]
[1649136355319,0.19791827,46777.0,46772.0,0.001]
[1649136355620,0.3,46776.0,46772.0,0.001]
[1649136355723,0.3,46776.0,46775.0,0.11815519]
[1649136355969,0.3,46776.0,46772.0,0.001]
[1649136356569,0.30055209,46776.0,46772.0,0.001]
[1649136357469,0.3,46776.0,46772.0,0.001]
[1649136357770,0.30056908,46776.0,46772.0,0.001]
[1649136358671,0.3,46776.0,46772.0,0.001]
[1649136358869,0.3,46776.0,46773.0,0.2457712]
[1649136358969,0.00056908,46776.0,46773.0,0.2457712]
[1649136359910,0.47446322,46778.0,46773.0,0.2457712]
[1649136360111,0.00056908,46777.0,46773.0,0.2457712]
[1649136360219,0.19793526,46777.0,46772.0,0.001]
[1649136361162,0.19736618,46777.0,46772.0,0.001]
[1649136361263,0.19736618,46777.0,46774.0,0.2734004]
[1649136361363,0.19793681,46777.0,46774.0,0.2734004]
[1649136361762,0.19793681,46777.0,46772.0,0.001]
[1649136361862,0.49793681,46777.0,46772.0,0.001]
[1649136362263,0.49736618,46777.0,46772.0,0.001]
[1649136362570,0.49793625,46777.0,46772.0,0.001]
[1649136362769,0.30057007,46777.0,46772.0,0.001]
[1649136362964,0.49793625,46777.0,46772.0,0.001]
[1649136363065,0.49793625,46777.0,46772.0,0.26935498]
[1649136363518,0.19736618,46777.0,46772.0,0.26935498]
[1649136363719,0.19793625,46777.0,46774.0,0.320919]
[1649136363820,0.00057007,46777.0,46773.0,0.320919]
[1649136364020,0.00057007,46777.0,46775.0,0.24822107]
[1649136364219,0.00057007,46777.0,46775.0,0.24811043]
[1649136364423,0.00057007,46777.0,46776.0,0.320919]
[1649136364521,0.00057007,46777.0,46775.0,0.24811043]
[1649136364623,0.00057007,46777.0,46776.0,0.320919]
[1649136364721,0.02643165,46778.0,46775.0,0.24811043]
[1649136364923,0.02702049,46778.0,46775.0,0.24811043]
[1649136365872,0.02643165,46778.0,46775.0,0.24811043]
[1649136367613,0.00058882,46779.0,46775.0,0.24811043]
[1649136368264,0.34877147,46781.0,46775.0,0.24811043]
[1649136368363,0.39877147,46781.0,46775.0,0.24811043]
[1649136368464,0.69877147,46781.0,46775.0,0.24811043]
[1649136368564,0.00058925,46779.0,46775.0,0.24811043]
[1649136369520,0.55805618,46781.0,46775.0,0.24811043]
[1649136369767,0.00058864,46779.0,46775.0,0.24811043]
[1649136370723,0.55805618,46781.0,46775.0,0.24811043]
[1649136370823,0.25805618,46781.0,46775.0,0.24811043]
[1649136370938,0.00058864,46779.0,46775.0,0.24811043]
[1649136371239,0.00058864,46779.0,46772.0,0.054457]
[1649136371540,0.19736618,46777.0,46772.0,0.054457]
[1649136371738,0.24736618,46777.0,46772.0,0.054457]
[1649136372190,0.24793499,46777.0,46772.0,0.001]
[1649136372490,0.24793499,46777.0,46772.0,0.25450279]
[1649136373092,0.106926,46780.0,46772.0,0.25450279]
[1649136373191,0.22379953,46777.0,46772.0,0.001]
[1649136373293,0.22436837,46777.0,46772.0,0.001]
[1649136373590,0.02700219,46777.0,46772.0,0.001]
[1649136373691,0.22436837,46777.0,46772.0,0.001]
[1649136374194,0.22436837,46777.0,46773.0,0.60776769]
[1649136374293,0.22379953,46777.0,46774.0,0.320919]
[1649136374392,0.22379953,46777.0,46773.0,0.28684869]
[1649136374674,0.22436837,46777.0,46773.0,0.28684869]
[1649136375121,0.22436837,46777.0,46772.0,0.001]
[1649136375530,0.22379953,46777.0,46772.0,0.001]
[1649136375722,0.22434938,46777.0,46772.0,0.001]
[1649136376173,0.22434938,46777.0,46772.0,0.25334241]
[1649136376272,0.0269832,46777.0,46772.0,0.25334241]
[1649136376725,0.02643335,46777.0,46772.0,0.25334241]
[1649136376926,0.02698385,46777.0,46772.0,0.25334241]
[1649136377875,0.02643335,46777.0,46772.0,0.25334241]
[1649136378081,0.02698385,46777.0,46772.0,0.25334241]
[1649136379118,0.32643335,46777.0,46772.0,0.25334241]
[1649136379320,0.32698508,46777.0,46772.0,0.25334241]
[1649136380322,0.32643335,46777.0,46772.0,0.25334241]
[1649136380523,0.32698566,46777.0,46772.0,0.25334241]
[1649136381526,0.32643335,46777.0,46772.0,0.25334241]
[1649136381728,0.32698566,46777.0,46772.0,0.25334241]
[1649136381929,0.02698566,46777.0,46772.0,0.25334241]
[1649136382687,0.02643335,46777.0,46772.0,0.25334241]
[1649136382890,0.32643335,46777.0,46772.0,0.001]
[1649136382987,0.32698553,46777.0,46772.0,0.001]
[1649136383889,0.59921572,46777.0,46772.0,0.001]
[1649136384188,0.59976782,46777.0,46772.0,0.001]
[1649136384589,0.65323382,46777.0,46772.0,0.001]
[1649136384892,0.79394911,46777.0,46772.0,0.001]
[1649136385140,0.65268172,46777.0,46772.0,0.001]
[1649136385339,0.79394911,46777.0,46772.0,0.001]
[1649136385541,0.79326948,46777.0,46772.0,0.001]
[1649136385641,0.0428,46776.0,46772.0,0.001]
[1649136385910,0.24755446,46774.0,46772.0,0.001]
[1649136385967,0.3,46773.0,46772.0,0.001]
[1649136386716,0.00055213,46775.0,46772.0,0.001]
[1649136387170,0.24421696,46775.0,46772.0,0.001]
[1649136387268,0.00055213,46775.0,46772.0,0.001]
[1649136387471,0.3428,46776.0,46772.0,0.001]
[1649136387770,0.34335214,46776.0,46772.0,0.001]
[1649136388377,0.59243239,46776.0,46772.0,0.001]
[1649136388722,0.73259554,46776.0,46772.0,0.001]
[1649136388924,0.73314768,46776.0,46772.0,0.001]
[1649136389916,0.73259554,46776.0,46772.0,0.001]
[1649136390118,0.73314767,46776.0,46772.0,0.001]
[1649136390219,0.19736618,46775.0,46772.0,0.001]
[1649136395449,0.19675248,46775.0,46772.0,0.001]
[1649136395649,0.73314768,46776.0,46772.0,0.001]
[1649136396007,0.73259554,46776.0,46772.0,0.001]
[1649136396100,0.19675248,46775.0,46772.0,0.001]
[1649136399373,0.0428,46774.0,46772.0,0.001]
[1649136399473,0.3,46773.0,46772.0,0.001]
[1649136399773,0.3428,46773.0,46772.0,0.001]
[1649136401969,0.3428,46773.0,46772.0,0.211]
[1649136402471,0.663719,46773.0,46772.0,0.211]
[1649136402572,0.3428,46773.0,46772.0,0.211]
[1649136404993,0.813719,46773.0,46772.0,0.211]
[1649136405094,0.4928,46773.0,46772.0,0.211]
[1649136407301,0.1928,46773.0,46772.0,0.211]
[1649136407499,0.0428,46773.0,46772.0,0.211]
[1649136413029,0.3428,46773.0,46772.0,0.211]
[1649136413226,0.4428,46773.0,46772.0,0.211]
[1649136417953,0.4428,46773.0,46772.0,0.21090316]
[1649136422735,0.1428,46773.0,46772.0,0.21090316]
[1649136422834,0.0428,46773.0,46772.0,0.21090316]
[1649136423234,0.3428,46773.0,46772.0,0.21090316]
[1649136423336,0.4428,46773.0,46772.0,0.21090316]
[1649136424573,0.1428,46773.0,46772.0,0.21090316]
[1649136424823,0.3428,46773.0,46772.0,0.21090316]
[1649136425023,0.4428,46773.0,46772.0,0.21090316]
[1649136425425,0.1428,46773.0,46772.0,0.21090316]
[1649136426030,0.0428,46773.0,46772.0,0.21090316]
[1649136431521,0.3428,46773.0,46772.0,0.21090316]
[1649136431672,0.4811598,46773.0,46772.0,0.21090316]
[1649136435771,0.1811598,46773.0,46772.0,0.21090316]
[1649136437426,0.0428,46773.0,46772.0,0.21090316]
[1649136438449,0.3428,46773.0,46772.0,0.21090316]
[1649136438699,0.3438,46773.0,46772.0,0.21090316]
[1649136440552,0.3438,46773.0,46772.0,0.21080945]
[1649136441804,0.0438,46773.0,46772.0,0.21080945]
[1649136455739,0.3438,46773.0,46772.0,0.21080945]
[1649136456038,1.47310243,46773.0,46772.0,0.21080945]
[1649136456342,1.61385572,46773.0,46772.0,0.21080945]
[1649136461963,1.47310243,46773.0,46772.0,0.21080945]
[1649136462165,1.61384106,46773.0,46772.0,0.21080945]
[1649136462366,1.75230045,46773.0,46772.0,0.21080945]
[1649136463265,1.61384106,46773.0,46772.0,0.21080945]
[1649136464796,1.61384106,46773.0,46772.0,0.21072207]
[1649136469082,1.75228896,46773.0,46772.0,0.21072207]
[1649136470084,1.61384106,46773.0,46772.0,0.21072207]
[1649136472199,1.31384106,46773.0,46772.0,0.21072207]
[1649136478197,0.18453863,46773.0,46772.0,0.21072207]
[1649136478300,0.14173863,46773.0,46772.0,0.21072207]
[1649136478498,0.001,46773.0,46772.0,0.53164107]
[1649136478597,0.001,46773.0,46772.0,0.21072207]
[1649136478899,0.001,46773.0,46772.0,0.53164107]
[1649136478997,0.001,46773.0,46772.0,0.21072207]
[1649136479099,0.001,46773.0,46772.0,0.37444607]
[1649136481605,0.001,46773.0,46772.0,0.67444607]
[1649136482405,0.001,46773.0,46772.0,0.79260126]
[1649136482610,0.001,46773.0,46772.0,0.67444607]
[1649136483995,0.001,46773.0,46772.0,0.68526266]
[1649136484900,0.001,46773.0,46772.0,0.685147]
[1649136494705,0.001,46773.0,46772.0,0.385147]
[1649136497352,0.19330462,46779.0,46773.0,0.320911]
[1649136497453,0.19330462,46779.0,46774.0,0.320919]
[1649136497553,0.19330462,46779.0,46773.0,0.163695]
[1649136497752,0.19330462,46779.0,46774.0,0.320919]
[1649136497852,0.19330462,46779.0,46772.0,0.26406441]
[1649136497957,0.19330462,46779.0,46773.0,0.320919]
[1649136498208,0.24330462,46779.0,46773.0,0.320919]
[1649136499439,0.00019402,46778.0,46773.0,0.320919]
[1649136500392,0.24330462,46779.0,46773.0,0.320919]
[1649136500495,0.24330462,46779.0,46774.0,0.163706]
[1649136500592,0.00019402,46778.0,46774.0,0.163706]
[1649136501543,0.24330462,46779.0,46774.0,0.163706]
[1649136501845,0.00059023,46778.0,46774.0,0.163706]
[1649136501948,0.00059023,46778.0,46775.0,0.320905]